{"text_format":"1","workbook":"xlsx","n_sheets":18,"sheets":["Daten","Organisatorischer Rahmen","Aufgaben","Arbeitszeit","Adjektive","Anerkennung_Leistungen","Zusammenarbeit Hauptamtl.","Regeln Zusammenarbeit","Qualität Zusammenarbeit","Streit Haupt-u.Ehrenamt","Konfliktbewältigung","Aspekte Zusammenarbeit","Qualität Zusammenarbeit Ehrenam","Streit Ehrenamtl.","Bedeutung Ehrenamt","Zivilg.+Staat","Ziele Organisation","Zielerreichung"],"not_rendered":{"charts":13,"images":0,"macros":0,"external_links":0,"defined_names":0,"comments":1,"pivot_tables":0},"unopened":[],"bounds":{"document_bytes":16777216,"sheet_cells":100000,"rows_first":2000,"rows_last":500,"rows_between":2000,"halvings":0,"cell_chars":16384,"cell_head_chars":4096},"cells_cut":0,"cells_raw":0,"read":"whole","date_system":"1900"}

{"sheet":"Daten","index":0,"n_rows":17,"n_cols":81,"rows_kept":17,"cut":false,"hidden":false,"merged":[]}
["Ant-wort ID","(1) In welchem organisatorischen Rahmen üben Sie Ihr wichtigstes Ehrenamt im Bereich der Kinder- und Jugendarbeit aus?\nVerein","(1) In welchem organisatorischen Rahmen üben Sie Ihr wichtigstes Ehrenamt im Bereich der Kinder- und Jugendarbeit aus?\nVerband","(1) In welchem organisatorischen Rahmen üben Sie Ihr wichtigstes Ehrenamt im Bereich der Kinder- und Jugendarbeit aus?\nGruppe, Initiative","(1) In welchem organisatorischen Rahmen üben Sie Ihr wichtigstes Ehrenamt im Bereich der Kinder- und Jugendarbeit aus?\nStaatliche oder kommunale Einrichtung","(1) In welchem organisatorischen Rahmen üben Sie Ihr wichtigstes Ehrenamt im Bereich der Kinder- und Jugendarbeit aus?\nKirche oder religiöse Einrichtung","(1) In welchem organisatorischen Rahmen üben Sie Ihr wichtigstes Ehrenamt im Bereich der Kinder- und Jugendarbeit aus?\nPrivate Einrichtung, Stiftung","(1) In welchem organisatorischen Rahmen üben Sie Ihr wichtigstes Ehrenamt im Bereich der Kinder- und Jugendarbeit aus?\nSonstiges","(2) Welche Aufgaben übernehmen Sie?\nFührung und Leitung","(2) Welche Aufgaben übernehmen Sie?\nErbringung von Beratungsangeboten","(2) Welche Aufgaben übernehmen Sie?\nDurchführung von Veranstaltungen","(2) Welche Aufgaben übernehmen Sie?\nDurchführung von Kursen, Gruppentreffen, AGs etc.","(2) Welche Aufgaben übernehmen Sie?\nKonzeptionelle Tätigkeiten (z.B. Kampagnen- und Programmentwicklung)","(2) Welche Aufgaben übernehmen Sie?\nVerwaltung / administrative Tätigkeiten","(2) Welche Aufgaben übernehmen Sie?\nSonstige Aufgaben, und zwar:","(2) Welche Aufgaben übernehmen Sie?\nWeiß nicht / keine Angabe","(3) Wie viele Stunden sind Sie durchschnittlich im Monat ehrenamtlich in der Kinder- und Jugendarbeit tätig?","(4) Wie gut beschreiben die folgenden Adjektive Ihre ehrenamtliche Tätigkeit?\nanspruchsvoll","(4) Wie gut beschreiben die folgenden Adjektive Ihre ehrenamtliche Tätigkeit?\neintönig","(4) Wie gut beschreiben die folgenden Adjektive Ihre ehrenamtliche Tätigkeit?\naufregend","(4) Wie gut beschreiben die folgenden Adjektive Ihre ehrenamtliche Tätigkeit?\ninteressant","(4) Wie gut beschreiben die folgenden Adjektive Ihre ehrenamtliche Tätigkeit?\nbelastend","(4) Wie gut beschreiben die folgenden Adjektive Ihre ehrenamtliche Tätigkeit?\nlehrreich","(4) Wie gut beschreiben die folgenden Adjektive Ihre ehrenamtliche Tätigkeit?\nbereichernd","(4) Wie gut beschreiben die folgenden Adjektive Ihre ehrenamtliche Tätigkeit?\nüberfordernd","(4) Wie gut beschreiben die folgenden Adjektive Ihre ehrenamtliche Tätigkeit?\nSonstige, und zwar:","(5) Welche Formen der Anerkennung erhalten Sie für Ihr Engagement?\nAuszeichnungen, Ehrungen, gemeinsames Abendessen o.ä.","(5) Welche Formen der Anerkennung erhalten Sie für Ihr Engagement?\nEhrenamtscard","(5) Welche Formen der Anerkennung erhalten Sie für Ihr Engagement?\nZertifikate für erworbene Fähigkeiten","(5) Welche Formen der Anerkennung erhalten Sie für Ihr Engagement?\nMöglichkeiten zur Fort- und Weiterbildung","(5) Welche Formen der Anerkennung erhalten Sie für Ihr Engagement?\nKostenlose Nutzung der Infrastruktur der Einrichtung / Organisation","(5) Welche Formen der Anerkennung erhalten Sie für Ihr Engagement?\nSachzuwendungen","(5) Welche Formen der Anerkennung erhalten Sie für Ihr Engagement?\nErstattung von Aufwendungen","(5) Welche Formen der Anerkennung erhalten Sie für Ihr Engagement?\nEhrenamtspauschale","(5) Welche Formen der Anerkennung erhalten Sie für Ihr Engagement?\nÜbungsleiterpauschale","(5) Welche Formen der Anerkennung erhalten Sie für Ihr Engagement?\nHonorare","(5) Welche Formen der Anerkennung erhalten Sie für Ihr Engagement?\nSonstige, und zwar:","(5) Welche Formen der Anerkennung erhalten Sie für Ihr Engagement?\nKeine","(6) Arbeiten Sie mit Hauptamtlichen zusammen?\nBei Nein => weiter mit Frage 12","(7) Wie ist die Zusammenarbeit ... geregelt?\nVon Fall zu Fall werden Aufgaben unterschiedlich verteilt.","(7) Wie ist die Zusammenarbeit ... geregelt?\nEs gibt Grundregeln für die Zusammenarbeit, aber keine Regelungen im Detail.","(7) Wie ist die Zusammenarbeit ... geregelt?\nDie Zusammenarbeit ist in allen Bereichen genau geregelt.","(7) Wie ist die Zusammenarbeit ... geregelt?\nHaupt- und Ehrenamtliche haben jeweils eigene Arbeitsbereiche.","(7) Wie ist die Zusammenarbeit ... geregelt?\nHaupt- und Ehrenamtliche arbeiten eng zusammen.","(7) Wie ist die Zusammenarbeit ... geregelt?\nIm Alltag gehen die Arbeiten von Haupt- und Ehrenamtlichen ineinander über.","(8) Bitte geben Sie eine Einschätzung zur Zusammenarbeit zwischen Hauptamtlichen und Ehrenamtlichen ab: Die Zusammenarbeit läuft…","(9) Werden eventuell auftretende Meinungsverschiedenheiten zwischen Haupt- und Ehrenamtlichen offen angesprochen?","(10) Möglichkeiten zur Bereinigung von Konflikte und Meinungsverschiedenheiten zwischen Haupt- und Ehrenamtlichen?\nDie Einrichtungsleitung einschalten","(10) Möglichkeiten zur Bereinigung von Konflikte und Meinungsverschiedenheiten zwischen Haupt- und Ehrenamtlichen?\nDas Freiwilligen-management / die Ehrenamtskoordination einschalten","(10) Möglichkeiten zur Bereinigung von Konflikte und Meinungsverschiedenheiten zwischen Haupt- und Ehrenamtlichen?\nIn einer Dienstbesprechung darüber sprechen","(10) Möglichkeiten zur Bereinigung von Konflikte und Meinungsverschiedenheiten zwischen Haupt- und Ehrenamtlichen?\nBei einem Gruppentreffen für Ehrenamtliche darüber sprechen","(10) Möglichkeiten zur Bereinigung von Konflikte und Meinungsverschiedenheiten zwischen Haupt- und Ehrenamtlichen?\nBei einer Supervision darüber sprechen","(10) Möglichkeiten zur Bereinigung von Konflikte und Meinungsverschiedenheiten zwischen Haupt- und Ehrenamtlichen?\nEine Mediation dazu durchführen","(10) Möglichkeiten zur Bereinigung von Konflikte und Meinungsverschiedenheiten zwischen Haupt- und Ehrenamtlichen?\nAuf externe Beratung oder Unterstützung zurückgreifen","(10) Möglichkeiten zur Bereinigung von Konflikte und Meinungsverschiedenheiten zwischen Haupt- und Ehrenamtlichen?\nKeine","(10) Möglichkeiten zur Bereinigung von Konflikte und Meinungsverschiedenheiten zwischen Haupt- und Ehrenamtlichen?\nSonstige, und zwar:","(10) Möglichkeiten zur Bereinigung von Konflikte und Meinungsverschiedenheiten zwischen Haupt- und Ehrenamtlichen?\nWeiß nicht / keine Angabe","(11) Bitte schätzen Sie diese für den organisatorischen Rahmen Ihres Engagements ein.\nDer Informations-fluss zwischen Haupt- und Ehrenamtlichen ist gut.","(11) Bitte schätzen Sie diese für den organisatorischen Rahmen Ihres Engagements ein.\nDie ehrenamtliche Arbeit ist in die Arbeitsorganisation der Einrichtung oder Organisation integriert.","(11) Bitte schätzen Sie diese für den organisatorischen Rahmen Ihres Engagements ein.\nIdeen und Vorschläge der Ehrenamtlichen werden aufgegriffen.","(11) Bitte schätzen Sie diese für den organisatorischen Rahmen Ihres Engagements ein.\nHauptamtliche und ehrenamtliche Arbeit ist klar voneinander abgegrenzt.","(11) Bitte schätzen Sie diese für den organisatorischen Rahmen Ihres Engagements ein.\nDie ehrenamtliche Arbeit wird von den Haupt-amtlichen anerkannt.","(11) Bitte schätzen Sie diese für den organisatorischen Rahmen Ihres Engagements ein.\nHauptamtlichen steht ausreichend Zeit für  Zusammen-arbeit mit Ehren-amtlichen zur Verfügung.","(11) Bitte schätzen Sie diese für den organisatorischen Rahmen Ihres Engagements ein.\nHauptamtliche sind gut für die Arbeit mit Ehrenamtlichen qualifiziert.","(11) Bitte schätzen Sie diese für den organisatorischen Rahmen Ihres Engagements ein.\nRechte und Pflichten der Ehrenamtlichen sind klar geregelt.","(11) Bitte schätzen Sie diese für den organisatorischen Rahmen Ihres Engagements ein.\nDie Ehren-amtlichen sind für ihre Arbeit gut ausgestattet (z.B. mit Räumen und Arbeitsmitteln).","(11) Bitte schätzen Sie diese für den organisatorischen Rahmen Ihres Engagements ein.\nProbleme und Meinungsverschiedenheiten zwi-schen Haupt- und Ehrenamtlichen werden geklärt.","(12) Bitte geben Sie eine Einschätzung zur Zusammenarbeit zwischen Ehrenamtlichen ab. Die Zusammenarbeit läuft…","(13) Werden eventuell auftretende Meinungsverschiedenheiten zwischen Ehrenamtlichen offen angesprochen?","(14) Stimmen Sie den folgenden Aussagen über Ihr ehrenamtliches Engagement zu?\n…ermögliche ich, Kindern und Jugendli-chen ihre Freizeit positiv zu gestalten.","(14) Stimmen Sie den folgenden Aussagen über Ihr ehrenamtliches Engagement zu?\n…helfe ich, die Lebenssituation von Kin-dern und Jugendlichen zu verbessern.","(15) Bitte nehmen Sie auch Stellung zu den folgenden allgemeinen Aussagen.\n...ersetzt staatliches Handeln nicht, sondern ergänzt es.","(15) Bitte nehmen Sie auch Stellung zu den folgenden allgemeinen Aussagen.\n...ermöglicht, gesellschaftliche Verantwortung zu übernehmen.","(15) Bitte nehmen Sie auch Stellung zu den folgenden allgemeinen Aussagen.\n...bringt gesellschaftlichen Wandel voran.","(15) Bitte nehmen Sie auch Stellung zu den folgenden allgemeinen Aussagen.\n...bewahrt gesellschaftliche Errungenschaften.","(15) Bitte nehmen Sie auch Stellung zu den folgenden allgemeinen Aussagen.\n...leistet einen wichtigen Beitrag dazu, dass gesellschaftliche Aufgaben bewältigt werden.","(15) Bitte nehmen Sie auch Stellung zu den folgenden allgemeinen Aussagen.\n...wird vom Staat instrumentalisiert.","(15) Bitte nehmen Sie auch Stellung zu den folgenden allgemeinen Aussagen.\n...füllt die Lücken, die der Staat nicht ausfüllt.","(16) Hat die Organisation, in der Sie sich engagieren allgemeine Ziele, die sie in der Kinder- und Jugendarbeit erreichen will?","(17) Stimmen Sie den beiden folgenden Aussagen zu?\nMeine Organisation hat Erfolg bei der Erreichung der gesetzten Ziele.","(17) Stimmen Sie den beiden folgenden Aussagen zu?\nMein Engagement trägt wesentlich zum Erreichen dieser Ziele bei."]
[null,"Ja","Ja","Ja","Ja","Ja","Ja",null,"Ja","Ja","Ja","Ja","Ja","Ja",null,"Ja",null,"trifft voll und ganz zu","trifft voll und ganz zu","trifft voll und ganz zu","trifft voll und ganz zu","trifft voll und ganz zu","trifft voll und ganz zu","trifft voll und ganz zu","trifft voll und ganz zu",null,"Erhalte ich","Erhalte ich","Erhalte ich","Erhalte ich","Erhalte ich","Erhalte ich","Erhalte ich","Erhalte ich","Erhalte ich","Erhalte ich","Erhalte ich","Erhalte ich","Ja","trifft voll und ganz zu","trifft voll und ganz zu","trifft voll und ganz zu","trifft voll und ganz zu","trifft voll und ganz zu","trifft voll und ganz zu","sehr gut","Ja","Ja","Ja","Ja","Ja","Ja","Ja","Ja","Ja",null,"Ja","trifft voll und ganz zu","trifft voll und ganz zu","trifft voll und ganz zu","trifft voll und ganz zu","trifft voll und ganz zu","trifft voll und ganz zu","trifft voll und ganz zu","trifft voll und ganz zu","trifft voll und ganz zu","trifft voll und ganz zu","sehr gut","Ja","stimme voll und ganz zu","stimme voll und ganz zu","stimme voll und ganz zu","stimme voll und ganz zu","stimme voll und ganz zu","stimme voll und ganz zu","stimme voll und ganz zu","stimme voll und ganz zu","stimme voll und ganz zu","[Antwort]","trifft voll und ganz zu","trifft voll und ganz zu"]
[null,"Nein","Nein","Nein","Nein","Nein","Nein",null,"Nein","Nein","Nein","Nein","Nein","Nein",null,"Nein",null,"trifft eher zu","trifft eher zu","trifft eher zu","trifft eher zu","trifft eher zu","trifft eher zu","trifft eher zu","trifft eher zu",null,"Wünsche ich mir","Wünsche ich mir","Wünsche ich mir","Wünsche ich mir","Wünsche ich mir","Wünsche ich mir","Wünsche ich mir","Wünsche ich mir","Wünsche ich mir","Wünsche ich mir","Wünsche ich mir","Wünsche ich mir","Nein","trifft eher zu","trifft eher zu","trifft eher zu","trifft eher zu","trifft eher zu","trifft eher zu","gut","Nein","Nein","Nein","Nein","Nein","Nein","Nein","Nein","Nein",null,"Nein","trifft eher zu","trifft eher zu","trifft eher zu","trifft eher zu","trifft eher zu","trifft eher zu","trifft eher zu","trifft eher zu","trifft eher zu","trifft eher zu","gut","Nein","stimme eher zu","stimme eher zu","stimme eher zu","stimme eher zu","stimme eher zu","stimme eher zu","stimme eher zu","stimme eher zu","stimme eher zu","Nein","trifft eher zu","trifft eher zu"]
[null,null,null,null,null,null,null,null,null,null,null,null,null,null,null,null,null,"teils/teils","teils/teils","teils/teils","teils/teils","teils/teils","teils/teils","teils/teils","teils/teils",null,null,null,null,null,null,null,null,null,null,null,null,null,"k.A.","teils/teils","teils/teils","teils/teils","teils/teils","teils/teils","teils/teils","mittel","Weiß nicht",null,null,null,null,null,null,null,null,null,null,"teils/teils","teils/teils","teils/teils","teils/teils","teils/teils","teils/teils","teils/teils","teils/teils","teils/teils","teils/teils","mittel","Weiß nicht","teils/teils","teils/teils","teils/teils","teils/teils","teils/teils","teils/teils","teils/teils","teils/teils","teils/teils","Weiß nicht","teils/teils","teils/teils"]
[null,null,null,null,null,null,null,null,null,null,null,null,null,null,null,null,null,"trifft eher nicht zu","trifft eher nicht zu","trifft eher nicht zu","trifft eher nicht zu","trifft eher nicht zu","trifft eher nicht zu","trifft eher nicht zu","trifft eher nicht zu",null,null,null,null,null,null,null,null,null,null,null,null,null,null,"trifft eher nicht zu","trifft eher nicht zu","trifft eher nicht zu","trifft eher nicht zu","trifft eher nicht zu","trifft eher nicht zu","nicht so gut","k.A.",null,null,null,null,null,null,null,null,null,null,"trifft eher nicht zu","trifft eher nicht zu","trifft eher nicht zu","trifft eher nicht zu","trifft eher nicht zu","trifft eher nicht zu","trifft eher nicht zu","trifft eher nicht zu","trifft eher nicht zu","trifft eher nicht zu","nicht so gut","k.A.","stimme eher nicht zu","stimme eher nicht zu","stimme eher nicht zu","stimme eher nicht zu","stimme eher nicht zu","stimme eher nicht zu","stimme eher nicht zu","stimme eher nicht zu","stimme eher nicht zu","k.A.","trifft eher nicht zu","trifft eher nicht zu"]
[null,null,null,null,null,null,null,null,null,null,null,null,null,null,null,null,null,"trifft ganz und gar nicht zu","trifft ganz und gar nicht zu","trifft ganz und gar nicht zu","trifft ganz und gar nicht zu","trifft ganz und gar nicht zu","trifft ganz und gar nicht zu","trifft ganz und gar nicht zu","trifft ganz und gar nicht zu",null,null,null,null,null,null,null,null,null,null,null,null,null,null,"trifft ganz und gar nicht zu","trifft ganz und gar nicht zu","trifft ganz und gar nicht zu","trifft ganz und gar nicht zu","trifft ganz und gar nicht zu","trifft ganz und gar nicht zu","schlecht",null,null,null,null,null,null,null,null,null,null,null,"trifft ganz und gar nicht zu","trifft ganz und gar nicht zu","trifft ganz und gar nicht zu","trifft ganz und gar nicht zu","trifft ganz und gar nicht zu","trifft ganz und gar nicht zu","trifft ganz und gar nicht zu","trifft ganz und gar nicht zu","trifft ganz und gar nicht zu","trifft ganz und gar nicht zu","schlecht",null,"stimme überhaupt nicht zu","stimme überhaupt nicht zu","stimme überhaupt nicht zu","stimme überhaupt nicht zu","stimme überhaupt nicht zu","stimme überhaupt nicht zu","stimme überhaupt nicht zu","stimme überhaupt nicht zu","stimme überhaupt nicht zu",null,"trifft überhaupt nicht zu","trifft überhaupt nicht zu"]
[null,null,null,null,null,null,null,null,null,null,null,null,null,null,null,null,null,"k.A.","k.A.","k.A.","k.A.","k.A.","k.A.","k.A.","k.A.",null,null,null,null,null,null,null,null,null,null,null,null,null,null,"k.A.","k.A.","k.A.","k.A.","k.A.","k.A.","k.A.",null,null,null,null,null,null,null,null,null,null,null,"k.A.","k.A.","k.A.","k.A.","k.A.","k.A.","k.A.","k.A.","k.A.","k.A.","k.A.",null,"k.A.","k.A.","k.A.","k.A.","k.A.","k.A.","k.A.","k.A.","k.A.",null,"k.A.","k.A."]
[1]
[2]
[3]
[4]
[5]
[6]
[7]
[8]
[9]
[10]

{"sheet":"Organisatorischer Rahmen","index":1,"n_rows":12,"n_cols":3,"rows_kept":12,"cut":false,"hidden":false,"merged":[]}
["\"In welchem organisatorischen Rahmen übern Sie Ihr wichtigstes Ehrenamt im Bereich der Kinder- und Jugendarbeit aus?\""]
["Mehrfachantwort möglich"]
[]
["Antwortmöglichkeit","Absolut","Relativ"]
["Verein",{"$f":"COUNTIF(Daten!B:B,\"Ja\")-1","v":0},{"$f":"B5/$B$12","v":{"$error":"#DIV/0!"}}]
["Verband",{"$f":"COUNTIF(Daten!C:C,\"Ja\")-1","v":0},{"$f":"B6/$B$12","v":{"$error":"#DIV/0!"}}]
["Gruppe, Initiative",{"$f":"COUNTIF(Daten!D:D,\"Ja\")-1","v":0},{"$error":"#DIV/0!"}]
["Staatliche o. kommunale. E.",{"$f":"COUNTIF(Daten!E:E,\"Ja\")-1","v":0},{"$error":"#DIV/0!"}]
["Kirche o. religiöse Einrichtung",{"$f":"COUNTIF(Daten!F:F,\"Ja\")-1","v":0},{"$error":"#DIV/0!"}]
["Private Einrichtung, Stiftung",{"$f":"COUNTIF(Daten!G:G,\"Ja\")-1","v":0},{"$error":"#DIV/0!"}]
["Sonstige",{"$f":"COUNTA(Daten!H:H,\"Ja\")-2","v":0},{"$error":"#DIV/0!"}]
[null,{"$f":"SUM(B5:B11)","v":0}]

{"sheet":"Aufgaben","index":2,"n_rows":13,"n_cols":3,"rows_kept":13,"cut":false,"hidden":false,"merged":[]}
["\"Welche Aufgaben übernehmen Sie?\""]
["Mehrfachantwort möglich"]
[]
["Antwortmöglichkeit","Absolut","Relativ"]
["Führung und Leitung",{"$f":"COUNTIF(Daten!I:I,\"Ja\")-1","v":0},{"$f":"B5/$B$13","v":{"$error":"#DIV/0!"}}]
["Erbringung von Beratungsangeboten",{"$f":"COUNTIF(Daten!J:J,\"Ja\")-1","v":0},{"$error":"#DIV/0!"}]
["Durchführung von Veranstaltungen",{"$f":"COUNTIF(Daten!K:K,\"Ja\")-1","v":0},{"$error":"#DIV/0!"}]
["Durchführung von Kursen, Gruppentreffen, AGs etc.",{"$f":"COUNTIF(Daten!L:L,\"Ja\")-1","v":0},{"$error":"#DIV/0!"}]
["Konzeptionelle Tätigkeiten",{"$f":"COUNTIF(Daten!M:M,\"Ja\")-1","v":0},{"$error":"#DIV/0!"}]
["Verwaltung / administrative Tätigkeiten",{"$f":"COUNTIF(Daten!N:N,\"Ja\")-1","v":0},{"$error":"#DIV/0!"}]
["Weiß nicht/keine Angabe",{"$f":"COUNTIF(Daten!P:P,\"Ja\")-1","v":0},{"$error":"#DIV/0!"}]
["Sonstige",{"$f":"COUNTA(Daten!O:O)-1","v":0},{"$f":"B12/$B$13","v":{"$error":"#DIV/0!"}}]
[null,{"$f":"SUM(B5:B11)","v":0}]

{"sheet":"Arbeitszeit","index":3,"n_rows":8,"n_cols":2,"rows_kept":8,"cut":false,"hidden":false,"merged":[]}
["\"Wie viele Stunden sind Sie durchschnittlich im Monat ehrenamtlich in der Kinder- und Jugendarbeit tätig?\""]
[]
[]
["Durchschnitt:",{"$f":"AVERAGE(Daten!Q:Q)","v":{"$error":"#DIV/0!"}}]
["Median:",{"$f":"MEDIAN(Daten!Q:Q)","v":{"$error":"#NUM!"}}]
[]
["Min:",{"$f":"MIN(Daten!Q:Q)","v":0}]
["Max:",{"$f":"MAX(Daten!Q:Q)","v":0}]

{"sheet":"Adjektive","index":4,"n_rows":24,"n_cols":9,"rows_kept":24,"cut":false,"hidden":false,"merged":[[14,6,15,6],[2,1,3,1],[2,2,3,2],[2,3,3,3],[2,4,3,4],[2,5,3,5],[2,6,3,6],[14,1,15,1],[14,2,15,2],[14,3,15,3],[14,4,15,4],[14,5,15,5]]}
["\"Wie gut beschreiben die folgenden Adjektive Ihre ehrenamtliche Tätigkeit?\""]
[]
[null,"trifft voll und ganz zu","trifft eher zu","teils/teils","trifft eher nicht zu","trifft ganz und gar nicht zu","keine Angabe"]
["Antwortmöglichkeit",null,null,null,null,null,null,null,"Sonstige"]
["anspruchsvoll",{"$f":"COUNTIF(Daten!$R:$R,Adjektive!B$3)-1","v":0},{"$f":"COUNTIF(Daten!$R:$R,Adjektive!C$3)-1","v":0},{"$f":"COUNTIF(Daten!$R:$R,Adjektive!D$3)-1","v":0},{"$f":"COUNTIF(Daten!$R:$R,Adjektive!E$3)-1","v":0},{"$f":"COUNTIF(Daten!$R:$R,Adjektive!F$3)-1","v":0},{"$f":"COUNTIF(Daten!$R:$R,\"k.A.\")-1","v":0}]
["eintönig",{"$f":"COUNTIF(Daten!$S:$S,Adjektive!B$3)-1","v":0},{"$f":"COUNTIF(Daten!$S:$S,Adjektive!C$3)-1","v":0},{"$f":"COUNTIF(Daten!$S:$S,Adjektive!D$3)-1","v":0},{"$f":"COUNTIF(Daten!$S:$S,Adjektive!E$3)-1","v":0},{"$f":"COUNTIF(Daten!$S:$S,Adjektive!F$3)-1","v":0},{"$f":"COUNTIF(Daten!$S:$S,\"k.A.\")-1","v":0}]
["aufregend",{"$f":"COUNTIF(Daten!$T:$T,Adjektive!B$3)-1","v":0},{"$f":"COUNTIF(Daten!$T:$T,Adjektive!C$3)-1","v":0},{"$f":"COUNTIF(Daten!$T:$T,Adjektive!D$3)-1","v":0},{"$f":"COUNTIF(Daten!$T:$T,Adjektive!E$3)-1","v":0},{"$f":"COUNTIF(Daten!$T:$T,Adjektive!F$3)-1","v":0},{"$f":"COUNTIF(Daten!$T:$T,\"k.A.\")-1","v":0}]
["interessant",{"$f":"COUNTIF(Daten!$U:$U,Adjektive!B$3)-1","v":0},{"$f":"COUNTIF(Daten!$U:$U,Adjektive!C$3)-1","v":0},{"$f":"COUNTIF(Daten!$U:$U,Adjektive!D$3)-1","v":0},{"$f":"COUNTIF(Daten!$U:$U,Adjektive!E$3)-1","v":0},{"$f":"COUNTIF(Daten!$U:$U,Adjektive!F$3)-1","v":0},{"$f":"COUNTIF(Daten!$U:$U,\"k.A.\")-1","v":0}]
["belastend",{"$f":"COUNTIF(Daten!$V:$V,Adjektive!B$3)-1","v":0},{"$f":"COUNTIF(Daten!$V:$V,Adjektive!C$3)-1","v":0},{"$f":"COUNTIF(Daten!$V:$V,Adjektive!D$3)-1","v":0},{"$f":"COUNTIF(Daten!$V:$V,Adjektive!E$3)-1","v":0},{"$f":"COUNTIF(Daten!$V:$V,Adjektive!F$3)-1","v":0},{"$f":"COUNTIF(Daten!$V:$V,\"k.A.\")-1","v":0}]
["lehrreich",{"$f":"COUNTIF(Daten!$W:$W,Adjektive!B$3)-1","v":0},{"$f":"COUNTIF(Daten!$W:$W,Adjektive!C$3)-1","v":0},{"$f":"COUNTIF(Daten!$W:$W,Adjektive!D$3)-1","v":0},{"$f":"COUNTIF(Daten!$W:$W,Adjektive!E$3)-1","v":0},{"$f":"COUNTIF(Daten!$W:$W,Adjektive!F$3)-1","v":0},{"$f":"COUNTIF(Daten!$W:$W,\"k.A.\")-1","v":0}]
["bereichernd",{"$f":"COUNTIF(Daten!$X:$X,Adjektive!B$3)-1","v":0},{"$f":"COUNTIF(Daten!$X:$X,Adjektive!C$3)-1","v":0},{"$f":"COUNTIF(Daten!$X:$X,Adjektive!D$3)-1","v":0},{"$f":"COUNTIF(Daten!$X:$X,Adjektive!E$3)-1","v":0},{"$f":"COUNTIF(Daten!$X:$X,Adjektive!F$3)-1","v":0},{"$f":"COUNTIF(Daten!$X:$X,\"k.A.\")-1","v":0}]
["überfordernd",{"$f":"COUNTIF(Daten!$Y:$Y,Adjektive!B$3)-1","v":0},{"$f":"COUNTIF(Daten!$Y:$Y,Adjektive!C$3)-1","v":0},{"$f":"COUNTIF(Daten!$Y:$Y,Adjektive!D$3)-1","v":0},{"$f":"COUNTIF(Daten!$Y:$Y,Adjektive!E$3)-1","v":0},{"$f":"COUNTIF(Daten!$Y:$Y,Adjektive!F$3)-1","v":0},{"$f":"COUNTIF(Daten!$Y:$Y,\"k.A.\")-1","v":0}]
[]
[]
[null,"trifft voll und ganz zu","trifft eher zu","teils/teils","trifft eher nicht zu","trifft überhaupt nicht zu","keine Angabe","n="]
["Relativ (% d. abgeg. Stimmen)",null,null,null,null,null,null,{"$f":"COUNTIF(Daten!$A:$A,\"*\")-1","v":0}]
["anspruchsvoll",{"$f":"B5/$H$16","v":{"$error":"#DIV/0!"}},{"$f":"C5/$H$16","v":{"$error":"#DIV/0!"}},{"$error":"#DIV/0!"},{"$error":"#DIV/0!"},{"$error":"#DIV/0!"},{"$error":"#DIV/0!"}]
["eintönig",{"$f":"B6/$H$16","v":{"$error":"#DIV/0!"}},{"$f":"C6/$H$16","v":{"$error":"#DIV/0!"}},{"$f":"D6/$H$16","v":{"$error":"#DIV/0!"}},{"$f":"E6/$H$16","v":{"$error":"#DIV/0!"}},{"$f":"F6/$H$16","v":{"$error":"#DIV/0!"}},{"$f":"G6/$H$16","v":{"$error":"#DIV/0!"}}]
["aufregend",{"$f":"B7/$H$16","v":{"$error":"#DIV/0!"}},{"$error":"#DIV/0!"},{"$error":"#DIV/0!"},{"$error":"#DIV/0!"},{"$error":"#DIV/0!"},{"$error":"#DIV/0!"}]
["interessant",{"$error":"#DIV/0!"},{"$error":"#DIV/0!"},{"$error":"#DIV/0!"},{"$error":"#DIV/0!"},{"$error":"#DIV/0!"},{"$error":"#DIV/0!"}]
["belastend",{"$error":"#DIV/0!"},{"$error":"#DIV/0!"},{"$error":"#DIV/0!"},{"$error":"#DIV/0!"},{"$error":"#DIV/0!"},{"$error":"#DIV/0!"}]
["lehrreich",{"$error":"#DIV/0!"},{"$error":"#DIV/0!"},{"$error":"#DIV/0!"},{"$error":"#DIV/0!"},{"$error":"#DIV/0!"},{"$error":"#DIV/0!"}]
["bereichernd",{"$error":"#DIV/0!"},{"$error":"#DIV/0!"},{"$error":"#DIV/0!"},{"$error":"#DIV/0!"},{"$error":"#DIV/0!"},{"$error":"#DIV/0!"}]
["überfordernd",{"$error":"#DIV/0!"},{"$error":"#DIV/0!"},{"$error":"#DIV/0!"},{"$error":"#DIV/0!"},{"$error":"#DIV/0!"},{"$error":"#DIV/0!"}]

{"sheet":"Anerkennung_Leistungen","index":5,"n_rows":19,"n_cols":6,"rows_kept":19,"cut":false,"hidden":false,"merged":[[2,1,2,2],[2,3,2,4]]}
["\"Welche Formen der Anerkennung erhalten Sie für Ihr Engagement?\"",null,null,null,"Achtung: Anerkennung = Leistung!"]
["Mehrfachantwort möglich"]
[null,"Erhalte ich",null,"Wünsche ich mir",null,"n="]
["Antwortmöglichkeit","Absolut","Relativ","Absolut","Relativ",{"$f":"COUNTIF(Daten!$A:$A,\"*\")-1","v":0}]
["Honorare",{"$f":"COUNTIF(Daten!AJ:AJ,Anerkennung_Leistungen!B$3)-1","v":0},{"$f":"B5/$F$4","v":{"$error":"#DIV/0!"}},{"$f":"COUNTIF(Daten!AJ:AJ,Anerkennung_Leistungen!$D$3)-1","v":0},{"$f":"D5/$F$4","v":{"$error":"#DIV/0!"}}]
["Übungsleiterpauschale",{"$f":"COUNTIF(Daten!AI:AI,Anerkennung_Leistungen!B$3)-1","v":0},{"$error":"#DIV/0!"},{"$f":"COUNTIF(Daten!AI:AI,Anerkennung_Leistungen!$D$3)-1","v":0},{"$error":"#DIV/0!"}]
["Ehrenamtspauschale",{"$f":"COUNTIF(Daten!AH:AH,Anerkennung_Leistungen!B$3)-1","v":0},{"$f":"B7/$F$4","v":{"$error":"#DIV/0!"}},{"$f":"COUNTIF(Daten!AH:AH,Anerkennung_Leistungen!$D$3)-1","v":0},{"$error":"#DIV/0!"}]
["Ehrenamtscard",{"$f":"COUNTIF(Daten!AB:AB,Anerkennung_Leistungen!B$3)-1","v":0},{"$error":"#DIV/0!"},{"$f":"COUNTIF(Daten!AB:AB,Anerkennung_Leistungen!$D$3)-1","v":0},{"$error":"#DIV/0!"}]
["Sachzuwendungen",{"$f":"COUNTIF(Daten!AF:AF,Anerkennung_Leistungen!B$3)-1","v":0},{"$error":"#DIV/0!"},{"$f":"COUNTIF(Daten!AA:AA,Anerkennung_Leistungen!$D$3)-1","v":0},{"$error":"#DIV/0!"}]
["Keine",{"$f":"COUNTIF(Daten!AL:AL,Anerkennung_Leistungen!B$3)-1","v":0},{"$error":"#DIV/0!"},{"$f":"COUNTIF(Daten!AL:AL,Anerkennung_Leistungen!$D$3)-1","v":0},{"$error":"#DIV/0!"}]
["Zertifikate für erworbene Fähigkeiten",{"$f":"COUNTIF(Daten!AC:AC,Anerkennung_Leistungen!B$3)-1","v":0},{"$error":"#DIV/0!"},{"$f":"COUNTIF(Daten!AC:AC,Anerkennung_Leistungen!$D$3)-1","v":0},{"$error":"#DIV/0!"}]
["Erstattung von Aufwendungen",{"$f":"COUNTIF(Daten!AG:AG,Anerkennung_Leistungen!B$3)-1","v":0},{"$error":"#DIV/0!"},{"$f":"COUNTIF(Daten!AG:AG,Anerkennung_Leistungen!$D$3)-1","v":0},{"$error":"#DIV/0!"}]
["Kostenlose Nutzung der Infrastruktur",{"$f":"COUNTIF(Daten!AE:AE,Anerkennung_Leistungen!B$3)-1","v":0},{"$error":"#DIV/0!"},{"$f":"COUNTIF(Daten!AE:AE,Anerkennung_Leistungen!$D$3)-1","v":0},{"$error":"#DIV/0!"}]
["Möglichkeiten zur Fort- und Weiterbildung",{"$f":"COUNTIF(Daten!AD:AD,Anerkennung_Leistungen!B$3)-1","v":0},{"$error":"#DIV/0!"},{"$f":"COUNTIF(Daten!AD:AD,Anerkennung_Leistungen!$D$3)-1","v":0},{"$error":"#DIV/0!"}]
["Formen der Anerkennung",{"$f":"COUNTIF(Daten!AA:AA,Anerkennung_Leistungen!B$3)-1","v":0},{"$error":"#DIV/0!"},{"$f":"COUNTIF(Daten!AA:AA,Anerkennung_Leistungen!$D$3)-1","v":0},{"$error":"#DIV/0!"}]
["Sonstige",{"$f":"SUM(B5:B15)","v":0},null,{"$f":"SUM(D5:D15)","v":0}]
[]
[]
["Sonstige:"]

{"sheet":"Zusammenarbeit Hauptamtl.","index":6,"n_rows":8,"n_cols":4,"rows_kept":8,"cut":false,"hidden":false,"merged":[]}
["\"Arbeiten Sie mit Hauptamtlichen zusammen?\""]
[]
[null,null,null,"n="]
["Antwortmöglichkeit","Absolut","Relativ",{"$f":"COUNTIF(Daten!$A:$A,\"*\")-1","v":0}]
["Ja",{"$f":"COUNTIF(Daten!AM:AM,\"Ja\")-1","v":0},{"$f":"B5/$D$4","v":{"$error":"#DIV/0!"}}]
["Nein",{"$f":"COUNTIF(Daten!AM:AM,\"Nein\")-1","v":0},{"$f":"B6/$D$4","v":{"$error":"#DIV/0!"}}]
["keine Angabe",{"$f":"COUNTIF(Daten!AM:AM,\"k.A.\")-1","v":0},{"$error":"#DIV/0!"}]
[null,{"$f":"SUM(B5:B7)","v":0}]

{"sheet":"Regeln Zusammenarbeit","index":7,"n_rows":20,"n_cols":8,"rows_kept":20,"cut":false,"hidden":false,"merged":[[12,0,13,0],[12,1,13,1],[12,2,13,2],[12,3,13,3],[12,4,13,4],[12,5,13,5],[12,6,13,6],[2,1,3,1],[2,2,3,2],[2,3,3,3],[2,4,3,4],[2,5,3,5],[2,6,3,6]]}
["\"Wie ist die Zusammenarbeit zwischen Ehrenamtlichen und Hauptamtlichen geregelt?\""]
[]
[null,"trifft voll und ganz zu","trifft eher zu","teils/teils","trifft eher nicht zu","trifft ganz und gar nicht zu","keine Angabe"]
["Antwortmöglichkeit"]
["Von Fall zu Fall werden Aufgaben unter-schiedlich verteilt.",{"$f":"COUNTIF(Daten!$AN:$AN,'Regeln Zusammenarbeit'!B$3)-1","v":0},{"$f":"COUNTIF(Daten!$AN:$AN,'Regeln Zusammenarbeit'!C$3)-1","v":0},{"$f":"COUNTIF(Daten!$AN:$AN,'Regeln Zusammenarbeit'!D$3)-1","v":0},{"$f":"COUNTIF(Daten!$AN:$AN,'Regeln Zusammenarbeit'!E$3)-1","v":0},{"$f":"COUNTIF(Daten!$AN:$AN,'Regeln Zusammenarbeit'!F$3)-1","v":0},{"$f":"COUNTIF(Daten!$AN:$AN,\"k.A.\")-1","v":0}]
["Es gibt Grundregeln für die Zusammenarbeit, aber keine Regelungen im Detail.",{"$f":"COUNTIF(Daten!$AO:$AO,'Regeln Zusammenarbeit'!B$3)-1","v":0},{"$f":"COUNTIF(Daten!$AO:$AO,'Regeln Zusammenarbeit'!C$3)-1","v":0},{"$f":"COUNTIF(Daten!$AO:$AO,'Regeln Zusammenarbeit'!D$3)-1","v":0},{"$f":"COUNTIF(Daten!$AO:$AO,'Regeln Zusammenarbeit'!E$3)-1","v":0},{"$f":"COUNTIF(Daten!$AO:$AO,'Regeln Zusammenarbeit'!F$3)-1","v":0},{"$f":"COUNTIF(Daten!$AO:$AO,\"k.A.\")-1","v":0}]
["Die Zusammenarbeit ist in allen Bereichen genau geregelt.",{"$f":"COUNTIF(Daten!$AP:$AP,'Regeln Zusammenarbeit'!B$3)-1","v":0},{"$f":"COUNTIF(Daten!$AP:$AP,'Regeln Zusammenarbeit'!C$3)-1","v":0},{"$f":"COUNTIF(Daten!$AP:$AP,'Regeln Zusammenarbeit'!D$3)-1","v":0},{"$f":"COUNTIF(Daten!$AP:$AP,'Regeln Zusammenarbeit'!E$3)-1","v":0},{"$f":"COUNTIF(Daten!$AP:$AP,'Regeln Zusammenarbeit'!F$3)-1","v":0},{"$f":"COUNTIF(Daten!$AP:$AP,\"k.A.\")-1","v":0}]
["Haupt- und Ehrenamtliche haben jeweils eigene Arbeitsbereiche.",{"$f":"COUNTIF(Daten!$AQ:$AQ,'Regeln Zusammenarbeit'!B$3)-1","v":0},{"$f":"COUNTIF(Daten!$AQ:$AQ,'Regeln Zusammenarbeit'!C$3)-1","v":0},{"$f":"COUNTIF(Daten!$AQ:$AQ,'Regeln Zusammenarbeit'!D$3)-1","v":0},{"$f":"COUNTIF(Daten!$AQ:$AQ,'Regeln Zusammenarbeit'!E$3)-1","v":0},{"$f":"COUNTIF(Daten!$AQ:$AQ,'Regeln Zusammenarbeit'!F$3)-1","v":0},{"$f":"COUNTIF(Daten!$AQ:$AQ,\"k.A.\")-1","v":0}]
["Haupt- und Ehrenamtliche arbeiten eng zu-sammen.",{"$f":"COUNTIF(Daten!$AR:$AR,'Regeln Zusammenarbeit'!B$3)-1","v":0},{"$f":"COUNTIF(Daten!$AR:$AR,'Regeln Zusammenarbeit'!C$3)-1","v":0},{"$f":"COUNTIF(Daten!$AR:$AR,'Regeln Zusammenarbeit'!D$3)-1","v":0},{"$f":"COUNTIF(Daten!$AR:$AR,'Regeln Zusammenarbeit'!E$3)-1","v":0},{"$f":"COUNTIF(Daten!$AR:$AR,'Regeln Zusammenarbeit'!F$3)-1","v":0},{"$f":"COUNTIF(Daten!$AR:$AR,\"k.A.\")-1","v":0}]
["Im Alltag gehen die Arbeiten von Haupt- und Ehrenamtlichen ineinander über.",{"$f":"COUNTIF(Daten!$AS:$AS,'Regeln Zusammenarbeit'!B$3)-1","v":0},{"$f":"COUNTIF(Daten!$AS:$AS,'Regeln Zusammenarbeit'!C$3)-1","v":0},{"$f":"COUNTIF(Daten!$AS:$AS,'Regeln Zusammenarbeit'!D$3)-1","v":0},{"$f":"COUNTIF(Daten!$AS:$AS,'Regeln Zusammenarbeit'!E$3)-1","v":0},{"$f":"COUNTIF(Daten!$AS:$AS,'Regeln Zusammenarbeit'!F$3)-1","v":0},{"$f":"COUNTIF(Daten!$AS:$AS,\"k.A.\")-1","v":0}]
[]
[]
["Relativ (% derjenigen, die mit Hauptamtlichen zusammenarbeiten)","trifft voll und ganz zu","trifft eher zu","teils/teils","trifft eher nicht zu","trifft überhaupt nicht zu","keine Angabe","n="]
[null,null,null,null,null,null,null,{"$f":"SUM(B5:G5)","v":0}]
["Von Fall zu Fall werden Aufgaben unterschiedlich verteilt.",{"$f":"B5/$H$14","v":{"$error":"#DIV/0!"}},{"$f":"C5/$H$14","v":{"$error":"#DIV/0!"}},{"$error":"#DIV/0!"},{"$error":"#DIV/0!"},{"$error":"#DIV/0!"},{"$error":"#DIV/0!"}]
["Es gibt Grundregeln für die Zusammenarbeit, aber keine Regelungen im Detail.",{"$f":"B6/$H$14","v":{"$error":"#DIV/0!"}},{"$error":"#DIV/0!"},{"$error":"#DIV/0!"},{"$error":"#DIV/0!"},{"$error":"#DIV/0!"},{"$error":"#DIV/0!"}]
["Die Zusammenarbeit ist in allen Bereichen genau geregelt.",{"$error":"#DIV/0!"},{"$error":"#DIV/0!"},{"$error":"#DIV/0!"},{"$error":"#DIV/0!"},{"$error":"#DIV/0!"},{"$error":"#DIV/0!"}]
["Haupt- und Ehrenamtliche haben jeweils eigene Arbeitsbereiche.",{"$error":"#DIV/0!"},{"$error":"#DIV/0!"},{"$error":"#DIV/0!"},{"$error":"#DIV/0!"},{"$error":"#DIV/0!"},{"$error":"#DIV/0!"}]
["Haupt- und Ehrenamtliche arbeiten eng zusammen.",{"$error":"#DIV/0!"},{"$error":"#DIV/0!"},{"$error":"#DIV/0!"},{"$error":"#DIV/0!"},{"$error":"#DIV/0!"},{"$error":"#DIV/0!"}]
["Im Alltag gehen die Arbeiten von Haupt- und Ehrenamtlichen ineinander über.",{"$error":"#DIV/0!"},{"$error":"#DIV/0!"},{"$error":"#DIV/0!"},{"$error":"#DIV/0!"},{"$error":"#DIV/0!"},{"$error":"#DIV/0!"}]

{"sheet":"Qualität Zusammenarbeit","index":8,"n_rows":10,"n_cols":8,"rows_kept":10,"cut":false,"hidden":false,"merged":[[7,6,8,6],[7,0,8,0],[7,1,8,1],[7,2,8,2],[7,3,8,3],[7,4,8,4],[7,5,8,5],[2,6,3,6],[2,1,3,1],[2,2,3,2],[2,3,3,3],[2,4,3,4],[2,5,3,5]]}
["\"Bitte geben Sie eine Einschätzung zur Zusammenarbeit zwischen Hauptamtlichen und Ehrenamtlichen ab:\""]
[]
[null,"sehr gut","gut","mittel","nicht so gut","schlecht","keine Angabe"]
[]
["Die Zusammenarbeit läuft…",{"$f":"COUNTIF(Daten!$AT:$AT,'Qualität Zusammenarbeit'!B$3)-1","v":0},{"$f":"COUNTIF(Daten!$AT:$AT,'Qualität Zusammenarbeit'!C$3)-1","v":0},{"$f":"COUNTIF(Daten!$AT:$AT,'Qualität Zusammenarbeit'!D$3)-1","v":0},{"$f":"COUNTIF(Daten!$AT:$AT,'Qualität Zusammenarbeit'!E$3)-1","v":0},{"$f":"COUNTIF(Daten!$AT:$AT,'Qualität Zusammenarbeit'!F$3)-1","v":0},{"$f":"COUNTIF(Daten!$AT:$AT,\"k.A.\")-1","v":0}]
[]
[]
["Relativ (% derjenigen, die mit Hauptamtlichen zusammenarbeiten)","sehr gut","gut","mittel","nicht so gut","schlecht","keine Angabe","n="]
[null,null,null,null,null,null,null,{"$f":"SUM(B5:G5)","v":0}]
["Die Zusammenarbeit läuft…",{"$f":"B5/$H$9","v":{"$error":"#DIV/0!"}},{"$f":"C5/$H$9","v":{"$error":"#DIV/0!"}},{"$error":"#DIV/0!"},{"$error":"#DIV/0!"},{"$error":"#DIV/0!"},{"$error":"#DIV/0!"}]

{"sheet":"Streit Haupt-u.Ehrenamt","index":9,"n_rows":9,"n_cols":4,"rows_kept":9,"cut":false,"hidden":false,"merged":[]}
["\"Werden eventuell auftretende Meinungsverschiedenheiten zwischen Haupt und Ehrenamtlichen offen angesprochen?\""]
[]
[null,null,null,"n="]
["Antwortmöglichkeit","Absolut","Relativ",{"$f":"COUNTA(Daten!AU:AU)-5","v":0}]
["Ja",{"$f":"COUNTIF(Daten!AU:AU,\"Ja\")-1","v":0},{"$f":"B5/$D$4","v":{"$error":"#DIV/0!"}}]
["Nein",{"$f":"COUNTIF(Daten!AU:AU,\"Nein-1\")","v":0},{"$f":"B6/$D$4","v":{"$error":"#DIV/0!"}}]
["Weiß nicht/keine Antwort",{"$f":"COUNTIF(Daten!AU:AU,\"Weiß nicht\")-1","v":0},{"$error":"#DIV/0!"}]
["keine Angabe",{"$f":"COUNTIF(Daten!AU:AU,\"k.A.\")-1","v":0},{"$error":"#DIV/0!"}]
[null,{"$f":"SUM(B5:B8)","v":0}]

{"sheet":"Konfliktbewältigung","index":10,"n_rows":17,"n_cols":4,"rows_kept":17,"cut":false,"hidden":false,"merged":[]}
["\"Welche Möglichkeiten gibt es bei Ihnen in der Einrichtung, für den Fall, dass Konflikte und Meinungsverschiedenheiten zwischen Haupt- und Ehrenamtlichen bereinigt werden müssen? Bitte geben Sie an, welche der folgenden Möglichkeiten bei Ihnen bereits praktiziert wurden.\""]
["Mehrfachantwort möglich"]
[null,null,null,"n="]
["Antwortmöglichkeit","Absolut","Relativ",{"$f":"COUNTA(Daten!AV:AV)-3","v":0}]
["Die Einrichtungsleitung einschalten",{"$f":"COUNTIF(Daten!AV:AV,\"Ja\")-1","v":0},{"$f":"B5/$D$4","v":{"$error":"#DIV/0!"}}]
["Das Freiwilligenmanagement / die Ehrenamtskoordination einschalten",{"$f":"COUNTIF(Daten!AW:AW,\"Ja\")-1","v":0},{"$f":"B6/$D$4","v":{"$error":"#DIV/0!"}}]
["In einer Dienstbesprechung darüber sprechen",{"$f":"COUNTIF(Daten!AX:AX,\"Ja\")-1","v":0},{"$error":"#DIV/0!"}]
["Bei einem Gruppentreffen für Ehrenamtliche darüber sprechen",{"$f":"COUNTIF(Daten!AY:AY,\"Ja\")-1","v":0},{"$error":"#DIV/0!"}]
["Bei einer Supervision darüber sprechen",{"$f":"COUNTIF(Daten!AZ:AZ,\"Ja\")-1","v":0},{"$error":"#DIV/0!"}]
["Eine Mediation dazu durchführen",{"$f":"COUNTIF(Daten!BA:BA,\"Ja\")-1","v":0},{"$error":"#DIV/0!"}]
["Auf externe Beratung oder Unterstützung zurückgreifen",{"$f":"COUNTIF(Daten!BB:BB,\"Ja\")-1","v":0},{"$error":"#DIV/0!"}]
["Keine",{"$f":"COUNTIF(Daten!BC:BC,\"Ja\")-1","v":0},{"$error":"#DIV/0!"}]
["Sonstige",null,{"$f":"B13/$D$4","v":{"$error":"#DIV/0!"}}]
["Weiß nicht / keine Angabe",{"$f":"COUNTIF(Daten!BE:BE,\"Ja\")-1","v":0},{"$error":"#DIV/0!"}]
[null,{"$f":"SUM(B5:B14)","v":0}]
[]
["Sonstige:"]

{"sheet":"Aspekte Zusammenarbeit","index":11,"n_rows":28,"n_cols":9,"rows_kept":28,"cut":false,"hidden":false,"merged":[[16,0,17,0],[16,1,17,1],[16,2,17,2],[16,3,17,3],[16,4,17,4],[14,7,17,7],[2,6,3,6],[2,1,3,1],[2,2,3,2],[2,3,3,3],[2,4,3,4],[2,5,3,5],[16,6,17,6],[16,5,17,5]]}
["\"Im Folgenden haben wir verschiedene Aspekte guter Zusammenarbeit aufgeführt. Bitte schätzen Sie diese für den organisatorische Rahmen Ihres Engagements (s. Frage 1) ein:\""]
[]
[null,"trifft voll und ganz zu","trifft eher zu","teils/teils","trifft eher nicht zu","trifft ganz und gar nicht zu","keine Angabe"]
["Antwortmöglichkeit"]
["Der Informationsfluss zwischen Haupt- und Ehrenamtlichen ist gut.",{"$f":"COUNTIF(Daten!$BF:$BF,'Aspekte Zusammenarbeit'!B$3)-1","v":0},{"$f":"COUNTIF(Daten!$BF:$BF,'Aspekte Zusammenarbeit'!C$3)-1","v":0},{"$f":"COUNTIF(Daten!$BF:$BF,'Aspekte Zusammenarbeit'!D$3)-1","v":0},{"$f":"COUNTIF(Daten!$BF:$BF,'Aspekte Zusammenarbeit'!E$3)-1","v":0},{"$f":"COUNTIF(Daten!$BF:$BF,'Aspekte Zusammenarbeit'!F$3)-1","v":0},{"$f":"COUNTIF(Daten!$BF:$BF,\"k.A.\")-1","v":0}]
["Die ehrenamtliche Arbeit ist in die Arbeitsor-ganisation der Einrichtung oder Organisation integriert.",{"$f":"COUNTIF(Daten!$BG:$BG,'Aspekte Zusammenarbeit'!B$3)-1","v":0},{"$f":"COUNTIF(Daten!$BG:$BG,'Aspekte Zusammenarbeit'!C$3)-1","v":0},{"$f":"COUNTIF(Daten!$BG:$BG,'Aspekte Zusammenarbeit'!D$3)-1","v":0},{"$f":"COUNTIF(Daten!$BG:$BG,'Aspekte Zusammenarbeit'!E$3)-1","v":0},{"$f":"COUNTIF(Daten!$BG:$BG,'Aspekte Zusammenarbeit'!F$3)-1","v":0},{"$f":"COUNTIF(Daten!$BG:$BG,\"k.A.\")-1","v":0}]
["Ideen und Vorschläge der Ehrenamtlichen werden aufgegriffen.",{"$f":"COUNTIF(Daten!$BH:$BH,'Aspekte Zusammenarbeit'!B$3)-1","v":0},{"$f":"COUNTIF(Daten!$BH:$BH,'Aspekte Zusammenarbeit'!C$3)-1","v":0},{"$f":"COUNTIF(Daten!$BH:$BH,'Aspekte Zusammenarbeit'!D$3)-1","v":0},{"$f":"COUNTIF(Daten!$BH:$BH,'Aspekte Zusammenarbeit'!E$3)-1","v":0},{"$f":"COUNTIF(Daten!$BH:$BH,'Aspekte Zusammenarbeit'!F$3)-1","v":0},{"$f":"COUNTIF(Daten!$BH:$BH,\"k.A.\")-1","v":0}]
["Hauptamtliche und ehrenamtliche Arbeit ist klar voneinander abgegrenzt.",{"$f":"COUNTIF(Daten!$BI:$BI,'Aspekte Zusammenarbeit'!B$3)-1","v":0},{"$f":"COUNTIF(Daten!$BI:$BI,'Aspekte Zusammenarbeit'!C$3)-1","v":0},{"$f":"COUNTIF(Daten!$BI:$BI,'Aspekte Zusammenarbeit'!D$3)-1","v":0},{"$f":"COUNTIF(Daten!$BI:$BI,'Aspekte Zusammenarbeit'!E$3)-1","v":0},{"$f":"COUNTIF(Daten!$BI:$BI,'Aspekte Zusammenarbeit'!F$3)-1","v":0},{"$f":"COUNTIF(Daten!$BI:$BI,\"k.A.\")-1","v":0}]
["Die ehrenamtliche Arbeit wird von den Hauptamtlichen anerkannt.",{"$f":"COUNTIF(Daten!$BJ:$BJ,'Aspekte Zusammenarbeit'!B$3)-1","v":0},{"$f":"COUNTIF(Daten!$BJ:$BJ,'Aspekte Zusammenarbeit'!C$3)-1","v":0},{"$f":"COUNTIF(Daten!$BJ:$BJ,'Aspekte Zusammenarbeit'!D$3)-1","v":0},{"$f":"COUNTIF(Daten!$BJ:$BJ,'Aspekte Zusammenarbeit'!E$3)-1","v":0},{"$f":"COUNTIF(Daten!$BJ:$BJ,'Aspekte Zusammenarbeit'!F$3)-1","v":0},{"$f":"COUNTIF(Daten!$BJ:$BJ,\"k.A.\")-1","v":0}]
["Den Hauptamtlichen steht ausreichend Zeit für die Zusammenarbeit mit Ehrenamtlichen zur Verfügung.",{"$f":"COUNTIF(Daten!$BK:$BK,'Aspekte Zusammenarbeit'!B$3)-1","v":0},{"$f":"COUNTIF(Daten!$BK:$BK,'Aspekte Zusammenarbeit'!C$3)-1","v":0},{"$f":"COUNTIF(Daten!$BK:$BK,'Aspekte Zusammenarbeit'!D$3)-1","v":0},{"$f":"COUNTIF(Daten!$BK:$BK,'Aspekte Zusammenarbeit'!E$3)-1","v":0},{"$f":"COUNTIF(Daten!$BK:$BK,'Aspekte Zusammenarbeit'!F$3)-1","v":0},{"$f":"COUNTIF(Daten!$BK:$BK,\"k.A.\")-1","v":0}]
["Hauptamtliche sind gut für die Arbeit mit Eh-renamtlichen qualifiziert.",{"$f":"COUNTIF(Daten!$BL:$BL,'Aspekte Zusammenarbeit'!B$3)-1","v":0},{"$f":"COUNTIF(Daten!$BL:$BL,'Aspekte Zusammenarbeit'!C$3)-1","v":0},{"$f":"COUNTIF(Daten!$BL:$BL,'Aspekte Zusammenarbeit'!D$3)-1","v":0},{"$f":"COUNTIF(Daten!$BL:$BL,'Aspekte Zusammenarbeit'!E$3)-1","v":0},{"$f":"COUNTIF(Daten!$BL:$BL,'Aspekte Zusammenarbeit'!F$3)-1","v":0},{"$f":"COUNTIF(Daten!$BL:$BL,\"k.A.\")-1","v":0}]
["Rechte und Pflichten der Ehrenamtlichen sind klar geregelt.",{"$f":"COUNTIF(Daten!$BM:$BM,'Aspekte Zusammenarbeit'!B$3)-1","v":0},{"$f":"COUNTIF(Daten!$BM:$BM,'Aspekte Zusammenarbeit'!C$3)-1","v":0},{"$f":"COUNTIF(Daten!$BM:$BM,'Aspekte Zusammenarbeit'!D$3)-1","v":0},{"$f":"COUNTIF(Daten!$BM:$BM,'Aspekte Zusammenarbeit'!E$3)-1","v":0},{"$f":"COUNTIF(Daten!$BM:$BM,'Aspekte Zusammenarbeit'!F$3)-1","v":0},{"$f":"COUNTIF(Daten!$BM:$BM,\"k.A.\")-1","v":0}]
["Die Ehrenamtlichen sind für ihre Arbeit gut ausgestattet (z.B. mit Räumen und Arbeitsmit-teln).",{"$f":"COUNTIF(Daten!$BN:$BN,'Aspekte Zusammenarbeit'!B$3)-1","v":0},{"$f":"COUNTIF(Daten!$BN:$BN,'Aspekte Zusammenarbeit'!C$3)-1","v":0},{"$f":"COUNTIF(Daten!$BN:$BN,'Aspekte Zusammenarbeit'!D$3)-1","v":0},{"$f":"COUNTIF(Daten!$BN:$BN,'Aspekte Zusammenarbeit'!E$3)-1","v":0},{"$f":"COUNTIF(Daten!$BN:$BN,'Aspekte Zusammenarbeit'!F$3)-1","v":0},{"$f":"COUNTIF(Daten!$BN:$BN,\"k.A.\")-1","v":0}]
["Probleme und Meinungsverschiedenheiten zwischen Haupt- und Ehrenamtlichen werden geklärt.",{"$f":"COUNTIF(Daten!$BO:$BO,'Aspekte Zusammenarbeit'!B$3)-1","v":0},{"$f":"COUNTIF(Daten!$BO:$BO,'Aspekte Zusammenarbeit'!C$3)-1","v":0},{"$f":"COUNTIF(Daten!$BO:$BO,'Aspekte Zusammenarbeit'!D$3)-1","v":0},{"$f":"COUNTIF(Daten!$BO:$BO,'Aspekte Zusammenarbeit'!E$3)-1","v":0},{"$f":"COUNTIF(Daten!$BO:$BO,'Aspekte Zusammenarbeit'!F$3)-1","v":0},{"$f":"COUNTIF(Daten!$BO:$BO,\"k.A.\")-1","v":0}]
[null,null,null,null,null,null,null,"Summe \"trifft voll und ganz zu\" + \"trifft eher zu\""]
[]
["Relativ (% derjenigen, die mit Hauptamtlichen zusammenarbeiten)","trifft voll und ganz zu","trifft eher zu","teils/teils","trifft eher nicht zu","trifft überhaupt nicht zu","keine Angabe",null,"n="]
[null,null,null,null,null,null,null,null,{"$f":"SUM(B5:G5)","v":0}]
["Der Informationsfluss zwischen Haupt- und Ehrenamtlichen ist gut.",{"$f":"B5/$I$18","v":{"$error":"#DIV/0!"}},{"$error":"#DIV/0!"},{"$error":"#DIV/0!"},{"$error":"#DIV/0!"},{"$error":"#DIV/0!"},{"$error":"#DIV/0!"},{"$f":"B19+C19","v":{"$error":"#DIV/0!"}}]
["Die ehrenamtliche Arbeit ist in die Arbeitsorganisation der Einrichtung oder Organisation integriert.",{"$error":"#DIV/0!"},{"$error":"#DIV/0!"},{"$error":"#DIV/0!"},{"$error":"#DIV/0!"},{"$error":"#DIV/0!"},{"$error":"#DIV/0!"},{"$f":"B20+C20","v":{"$error":"#DIV/0!"}}]
["Ideen und Vorschläge der Ehrenamtlichen werden aufgegriffen.",{"$error":"#DIV/0!"},{"$error":"#DIV/0!"},{"$error":"#DIV/0!"},{"$error":"#DIV/0!"},{"$error":"#DIV/0!"},{"$error":"#DIV/0!"},{"$error":"#DIV/0!"}]
["Hauptamtliche und ehrenamtliche Arbeit ist klar voneinander abgegrenzt.",{"$error":"#DIV/0!"},{"$error":"#DIV/0!"},{"$error":"#DIV/0!"},{"$error":"#DIV/0!"},{"$error":"#DIV/0!"},{"$error":"#DIV/0!"},{"$error":"#DIV/0!"}]
["Die ehrenamtliche Arbeit wird von den Hauptamtlichen anerkannt.",{"$error":"#DIV/0!"},{"$error":"#DIV/0!"},{"$error":"#DIV/0!"},{"$error":"#DIV/0!"},{"$error":"#DIV/0!"},{"$error":"#DIV/0!"},{"$error":"#DIV/0!"}]
["Den Hauptamtlichen steht ausreichend Zeit für die Zusammenarbeit mit Ehrenamtlichen zur Verfügung.",{"$error":"#DIV/0!"},{"$error":"#DIV/0!"},{"$error":"#DIV/0!"},{"$error":"#DIV/0!"},{"$error":"#DIV/0!"},{"$error":"#DIV/0!"},{"$error":"#DIV/0!"}]
["Hauptamtliche sind gut für die Arbeit mit Ehrenamtlichen qualifiziert.",{"$error":"#DIV/0!"},{"$error":"#DIV/0!"},{"$error":"#DIV/0!"},{"$error":"#DIV/0!"},{"$error":"#DIV/0!"},{"$error":"#DIV/0!"},{"$error":"#DIV/0!"}]
["Rechte und Pflichten der Ehrenamtlichen sind klar geregelt.",{"$error":"#DIV/0!"},{"$error":"#DIV/0!"},{"$error":"#DIV/0!"},{"$error":"#DIV/0!"},{"$error":"#DIV/0!"},{"$error":"#DIV/0!"},{"$error":"#DIV/0!"}]
["Die Ehrenamtlichen sind für ihre Arbeit gut ausgestattet (z.B. mit Räumen und Arbeitsmitteln).",{"$error":"#DIV/0!"},{"$error":"#DIV/0!"},{"$error":"#DIV/0!"},{"$error":"#DIV/0!"},{"$error":"#DIV/0!"},{"$error":"#DIV/0!"},{"$error":"#DIV/0!"}]
["Probleme und Meinungsverschiedenheiten zwischen Haupt- und Ehrenamtlichen werden geklärt.",{"$error":"#DIV/0!"},{"$error":"#DIV/0!"},{"$error":"#DIV/0!"},{"$error":"#DIV/0!"},{"$error":"#DIV/0!"},{"$error":"#DIV/0!"},{"$error":"#DIV/0!"}]

{"sheet":"Qualität Zusammenarbeit Ehrenam","index":12,"n_rows":10,"n_cols":8,"rows_kept":10,"cut":false,"hidden":false,"merged":[[7,6,8,6],[7,0,8,0],[7,1,8,1],[7,2,8,2],[7,3,8,3],[7,4,8,4],[7,5,8,5],[2,6,3,6],[2,1,3,1],[2,2,3,2],[2,3,3,3],[2,4,3,4],[2,5,3,5]]}
["\"Bitte geben Sie eine Einschätzung zur Zusammenarbeit zwischen Ehrenamtlichen ab:\""]
[]
[null,"sehr gut","gut","mittel","nicht so gut","schlecht","keine Angabe"]
[]
["Die Zusammenarbeit läuft…",{"$f":"COUNTIF(Daten!$BP:$BP,'Qualität Zusammenarbeit Ehrenam'!B$3)-1","v":0},{"$f":"COUNTIF(Daten!$BP:$BP,'Qualität Zusammenarbeit Ehrenam'!C$3)-1","v":0},{"$f":"COUNTIF(Daten!$BP:$BP,'Qualität Zusammenarbeit Ehrenam'!D$3)-1","v":0},{"$f":"COUNTIF(Daten!$BP:$BP,'Qualität Zusammenarbeit Ehrenam'!E$3)-1","v":0},{"$f":"COUNTIF(Daten!$BP:$BP,'Qualität Zusammenarbeit Ehrenam'!F$3)-1","v":0},{"$f":"COUNTIF(Daten!$BP:$BP,\"k.A.\")-1","v":0}]
[]
[]
["Relativ (% derjenigen, die mit Hauptamtlichen zusammenarbeiten)","sehr gut","gut","mittel","nicht so gut","schlecht","keine Angabe","n="]
[null,null,null,null,null,null,null,{"$f":"SUM(B5:G5)","v":0}]
["Die Zusammenarbeit läuft…",{"$f":"B5/$H$9","v":{"$error":"#DIV/0!"}},{"$f":"C5/$H$9","v":{"$error":"#DIV/0!"}},{"$error":"#DIV/0!"},{"$error":"#DIV/0!"},{"$error":"#DIV/0!"},{"$error":"#DIV/0!"}]

{"sheet":"Streit Ehrenamtl.","index":13,"n_rows":9,"n_cols":4,"rows_kept":9,"cut":false,"hidden":false,"merged":[]}
["\"Werden eventuell auftretende Meinungsverschiedenheiten zwischen Ehrenamtlichen offen angesprochen?\""]
[]
[null,null,null,"n="]
["Antwortmöglichkeit","Absolut","Relativ",{"$f":"B9","v":0}]
["Ja",{"$f":"COUNTIF(Daten!BQ:BQ,\"Ja\")-1","v":0},{"$f":"B5/$D$4","v":{"$error":"#DIV/0!"}}]
["Nein",{"$f":"COUNTIF(Daten!BQ:BQ,\"Nein\")-1","v":0},{"$f":"B6/$D$4","v":{"$error":"#DIV/0!"}}]
["Weiß nicht/keine Antwort",{"$f":"COUNTIF(Daten!BQ:BQ,\"Weiß nicht\")-1","v":0},{"$error":"#DIV/0!"}]
["keine Angabe",{"$f":"COUNTIF(Daten!BQ:BQ,\"k.A.\")-1","v":0},{"$error":"#DIV/0!"}]
[null,{"$f":"SUM(B5:B8)","v":0}]

{"sheet":"Bedeutung Ehrenamt","index":14,"n_rows":14,"n_cols":8,"rows_kept":14,"cut":false,"hidden":false,"merged":[[10,6,11,6],[8,0,9,0],[10,1,11,1],[10,2,11,2],[10,3,11,3],[10,4,11,4],[10,5,11,5],[2,6,3,6],[2,1,3,1],[2,2,3,2],[2,3,3,3],[2,4,3,4],[2,5,3,5]]}
["\"Stimmen Sie den folgenden Aussagen über Ihr ehrenamtliches Engagement zu?\""]
[]
[null,"stimme voll und ganz zu","stimme eher zu","teils/teils","stimme eher nicht zu","stimme überhaupt nicht zu","keine Angabe"]
["Durch mein ehrenamtliches Engage-ment…"]
["…ermögliche ich, Kindern und Jugendli-chen ihre Freizeit positiv zu gestalten.",{"$f":"COUNTIF(Daten!$BR:$BR,'Bedeutung Ehrenamt'!B$3)-1","v":0},{"$f":"COUNTIF(Daten!$BR:$BR,'Bedeutung Ehrenamt'!C$3)-1","v":0},{"$f":"COUNTIF(Daten!$BR:$BR,'Bedeutung Ehrenamt'!D$3)-1","v":0},{"$f":"COUNTIF(Daten!$BR:$BR,'Bedeutung Ehrenamt'!E$3)-1","v":0},{"$f":"COUNTIF(Daten!$BR:$BR,'Bedeutung Ehrenamt'!F$3)-1","v":0},{"$f":"COUNTIF(Daten!$BR:$BR,\"k.A.\")-1","v":0}]
["…helfe ich, die Lebenssituation von Kin-dern und Jugendlichen zu verbessern.",{"$f":"COUNTIF(Daten!$BS:$BS,'Bedeutung Ehrenamt'!B$3)-1","v":0},{"$f":"COUNTIF(Daten!$BS:$BS,'Bedeutung Ehrenamt'!C$3)-1","v":0},{"$f":"COUNTIF(Daten!$BS:$BS,'Bedeutung Ehrenamt'!D$3)-1","v":0},{"$f":"COUNTIF(Daten!$BS:$BS,'Bedeutung Ehrenamt'!E$3)-1","v":0},{"$f":"COUNTIF(Daten!$BS:$BS,'Bedeutung Ehrenamt'!F$3)-1","v":0},{"$f":"COUNTIF(Daten!$BS:$BS,\"k.A.\")-1","v":0}]
[]
[]
["Relativ (% derjenigen, die mit Hauptamtlichen zusammenarbeiten)"]
[]
[null,"stimme voll und ganz zu","stimme eher zu","teils/teils","stimme eher nicht zu","stimme überhaupt nicht zu","keine Angabe","n="]
[null,null,null,null,null,null,null,{"$f":"SUM(B5:G5)","v":0}]
["…ermögliche ich, Kindern und Jugendlichen ihre Freizeit positiv zu gestalten.",{"$f":"B5/$H$12","v":{"$error":"#DIV/0!"}},{"$error":"#DIV/0!"},{"$error":"#DIV/0!"},{"$error":"#DIV/0!"},{"$error":"#DIV/0!"},{"$error":"#DIV/0!"}]
["…helfe ich, die Lebenssituation von Kindern und Jugendlichen zu verbessern.",{"$error":"#DIV/0!"},{"$error":"#DIV/0!"},{"$error":"#DIV/0!"},{"$error":"#DIV/0!"},{"$error":"#DIV/0!"},{"$error":"#DIV/0!"}]

{"sheet":"Zivilg.+Staat","index":15,"n_rows":22,"n_cols":8,"rows_kept":22,"cut":false,"hidden":false,"merged":[[13,6,14,6],[13,0,14,0],[13,1,14,1],[13,2,14,2],[13,3,14,3],[13,4,14,4],[13,5,14,5],[2,6,3,6],[2,1,3,1],[2,2,3,2],[2,3,3,3],[2,4,3,4],[2,5,3,5]]}
["\"Bitte nehmen Sie auch Stellung zu den folgenden, allgemeinen Aussagen:\""]
[]
[null,"stimme voll und ganz zu","stimme eher zu","teils/teils","stimme eher nicht zu","stimme überhaupt nicht zu","keine Angabe"]
["Ehrenamtliches Engagement…"]
["...ersetzt staatliches Handeln nicht, sondern ergänzt es.",{"$f":"COUNTIF(Daten!$BT:$BT,'Zivilg.+Staat'!B$3)-1","v":0},{"$f":"COUNTIF(Daten!$BT:$BT,'Zivilg.+Staat'!C$3)-1","v":0},{"$f":"COUNTIF(Daten!$BT:$BT,'Zivilg.+Staat'!D$3)-1","v":0},{"$f":"COUNTIF(Daten!$BT:$BT,'Zivilg.+Staat'!E$3)-1","v":0},{"$f":"COUNTIF(Daten!$BT:$BT,'Zivilg.+Staat'!F$3)-1","v":0},{"$f":"COUNTIF(Daten!$BT:$BT,\"k.A.\")-1","v":0}]
["...ermöglicht, gesellschaftliche Verantwortung zu übernehmen.",{"$f":"COUNTIF(Daten!$BU:$BU,'Zivilg.+Staat'!B$3)-1","v":0},{"$f":"COUNTIF(Daten!$BU:$BU,'Zivilg.+Staat'!C$3)-1","v":0},{"$f":"COUNTIF(Daten!$BU:$BU,'Zivilg.+Staat'!D$3)-1","v":0},{"$f":"COUNTIF(Daten!$BU:$BU,'Zivilg.+Staat'!E$3)-1","v":0},{"$f":"COUNTIF(Daten!$BU:$BU,'Zivilg.+Staat'!F$3)-1","v":0},{"$f":"COUNTIF(Daten!$BU:$BU,\"k.A.\")-1","v":0}]
["...bringt gesellschaftlichen Wandel voran.",{"$f":"COUNTIF(Daten!$BV:$BV,'Zivilg.+Staat'!B$3)-1","v":0},{"$f":"COUNTIF(Daten!$BV:$BV,'Zivilg.+Staat'!C$3)-1","v":0},{"$f":"COUNTIF(Daten!$BV:$BV,'Zivilg.+Staat'!D$3)-1","v":0},{"$f":"COUNTIF(Daten!$BV:$BV,'Zivilg.+Staat'!E$3)-1","v":0},{"$f":"COUNTIF(Daten!$BV:$BV,'Zivilg.+Staat'!F$3)-1","v":0},{"$f":"COUNTIF(Daten!$BV:$BV,\"k.A.\")-1","v":0}]
["...bewahrt gesellschaftliche Errungenschaften.",{"$f":"COUNTIF(Daten!$BW:$BW,'Zivilg.+Staat'!B$3)-1","v":0},{"$f":"COUNTIF(Daten!$BW:$BW,'Zivilg.+Staat'!C$3)-1","v":0},{"$f":"COUNTIF(Daten!$BW:$BW,'Zivilg.+Staat'!D$3)-1","v":0},{"$f":"COUNTIF(Daten!$BW:$BW,'Zivilg.+Staat'!E$3)-1","v":0},{"$f":"COUNTIF(Daten!$BW:$BW,'Zivilg.+Staat'!F$3)-1","v":0},{"$f":"COUNTIF(Daten!$BW:$BW,\"k.A.\")-1","v":0}]
["...leistet einen wichtigen Beitrag dazu, dass gesellschaftliche Aufgaben bewältigt werden.",{"$f":"COUNTIF(Daten!$BX:$BX,'Zivilg.+Staat'!B$3)-1","v":0},{"$f":"COUNTIF(Daten!$BX:$BX,'Zivilg.+Staat'!C$3)-1","v":0},{"$f":"COUNTIF(Daten!$BX:$BX,'Zivilg.+Staat'!D$3)-1","v":0},{"$f":"COUNTIF(Daten!$BX:$BX,'Zivilg.+Staat'!E$3)-1","v":0},{"$f":"COUNTIF(Daten!$BX:$BX,'Zivilg.+Staat'!F$3)-1","v":0},{"$f":"COUNTIF(Daten!$BX:$BX,\"k.A.\")-1","v":0}]
["...wird vom Staat instrumentalisiert.",{"$f":"COUNTIF(Daten!$BY:$BY,'Zivilg.+Staat'!B$3)-1","v":0},{"$f":"COUNTIF(Daten!$BY:$BY,'Zivilg.+Staat'!C$3)-1","v":0},{"$f":"COUNTIF(Daten!$BY:$BY,'Zivilg.+Staat'!D$3)-1","v":0},{"$f":"COUNTIF(Daten!$BY:$BY,'Zivilg.+Staat'!E$3)-1","v":0},{"$f":"COUNTIF(Daten!$BY:$BY,'Zivilg.+Staat'!F$3)-1","v":0},{"$f":"COUNTIF(Daten!$BY:$BY,\"k.A.\")-1","v":0}]
["...füllt die Lücken, die der Staat nicht ausfüllt.",{"$f":"COUNTIF(Daten!$BZ:$BZ,'Zivilg.+Staat'!B$3)-1","v":0},{"$f":"COUNTIF(Daten!$BZ:$BZ,'Zivilg.+Staat'!C$3)-1","v":0},{"$f":"COUNTIF(Daten!$BZ:$BZ,'Zivilg.+Staat'!D$3)-1","v":0},{"$f":"COUNTIF(Daten!$BZ:$BZ,'Zivilg.+Staat'!E$3)-1","v":0},{"$f":"COUNTIF(Daten!$BZ:$BZ,'Zivilg.+Staat'!F$3)-1","v":0},{"$f":"COUNTIF(Daten!$BZ:$BZ,\"k.A.\")-1","v":0}]
[]
[]
["Relativ (% derjenigen, die mit Hauptamtlichen zusammenarbeiten)","stimme voll und ganz zu","stimme eher zu","teils/teils","stimme eher nicht zu","stimme überhaupt nicht zu","keine Angabe","n="]
[null,null,null,null,null,null,null,{"$f":"SUM(B5:G5)","v":0}]
["...ersetzt staatliches Handeln nicht, sondern ergänzt es.",{"$f":"B5/$H$15","v":{"$error":"#DIV/0!"}},{"$f":"C5/$H$15","v":{"$error":"#DIV/0!"}},{"$error":"#DIV/0!"},{"$error":"#DIV/0!"},{"$error":"#DIV/0!"},{"$error":"#DIV/0!"}]
["...ermöglicht, gesellschaftliche Verantwortung zu übernehmen.",{"$f":"B6/$H$15","v":{"$error":"#DIV/0!"}},{"$f":"C6/$H$15","v":{"$error":"#DIV/0!"}},{"$error":"#DIV/0!"},{"$error":"#DIV/0!"},{"$error":"#DIV/0!"},{"$error":"#DIV/0!"}]
["...bringt gesellschaftlichen Wandel voran.",{"$f":"B7/$H$15","v":{"$error":"#DIV/0!"}},{"$error":"#DIV/0!"},{"$error":"#DIV/0!"},{"$error":"#DIV/0!"},{"$error":"#DIV/0!"},{"$error":"#DIV/0!"}]
["...bewahrt gesellschaftliche Errungenschaften.",{"$error":"#DIV/0!"},{"$error":"#DIV/0!"},{"$error":"#DIV/0!"},{"$error":"#DIV/0!"},{"$error":"#DIV/0!"},{"$error":"#DIV/0!"}]
["...leistet einen wichtigen Beitrag dazu, dass gesellschaftliche Aufgaben bewältigt werden.",{"$error":"#DIV/0!"},{"$error":"#DIV/0!"},{"$error":"#DIV/0!"},{"$error":"#DIV/0!"},{"$error":"#DIV/0!"},{"$error":"#DIV/0!"}]
["...wird vom Staat instrumentalisiert.",{"$error":"#DIV/0!"},{"$error":"#DIV/0!"},{"$error":"#DIV/0!"},{"$error":"#DIV/0!"},{"$error":"#DIV/0!"},{"$error":"#DIV/0!"}]
["...füllt die Lücken, die der Staat nicht ausfüllt.",{"$error":"#DIV/0!"},{"$error":"#DIV/0!"},{"$error":"#DIV/0!"},{"$error":"#DIV/0!"},{"$error":"#DIV/0!"},{"$error":"#DIV/0!"}]

{"sheet":"Ziele Organisation","index":16,"n_rows":11,"n_cols":4,"rows_kept":11,"cut":false,"hidden":false,"merged":[]}
["\"Hat die Organisation, in der Sie sich engagieren (s. Frage 1) allgemeine Ziele, die sie in der Kinder- und Jugendarbeit erreichen will? Nutzen Sie bitte das freie Feld, um die Ziele kurz zu benennen.\""]
[]
[null,null,null,"n="]
["Antwortmöglichkeit","Absolut","Relativ",{"$f":"B9","v":0}]
["Ja, und zwar",{"$f":"COUNTA(Daten!CA:CA)-5-B6-B7-B8","v":0},{"$f":"B5/$D$4","v":{"$error":"#DIV/0!"}}]
["Nein",{"$f":"COUNTIF(Daten!CA:CA,\"Nein\")-1","v":0},{"$f":"B6/$D$4","v":{"$error":"#DIV/0!"}}]
["Weiß nicht/keine Angabe",{"$f":"COUNTIF(Daten!CA:CA,\"Weiß nicht\")-1","v":0},{"$f":"B7/$D$4","v":{"$error":"#DIV/0!"}}]
["keine Angabe",{"$f":"COUNTIF(Daten!CA:CA,\"k.A.\")-1","v":0},{"$f":"B8/$D$4","v":{"$error":"#DIV/0!"}}]
[null,{"$f":"SUM(B5:B8)","v":0}]
[]
["Ja, und zwar:"]

{"sheet":"Zielerreichung","index":17,"n_rows":12,"n_cols":8,"rows_kept":12,"cut":false,"hidden":false,"merged":[[8,6,9,6],[2,1,3,1],[2,2,3,2],[2,3,3,3],[2,4,3,4],[2,5,3,5],[2,6,3,6],[8,1,9,1],[8,2,9,2],[8,3,9,3],[8,4,9,4],[8,5,9,5]]}
["\"Stimmen Sie den beiden folgenden Aussagen zu?\""]
[]
[null,"trifft voll und ganz zu","trifft eher zu","teils/teils","trifft eher nicht zu","trifft überhaupt nicht zu","keine Angabe"]
["Antwortmöglichkeit"]
["Meine Organisation (s. Frage 1) hat Erfolg bei der Erreichung der gesetzten Ziele.",{"$f":"COUNTIF(Daten!$CB:$CB,Zielerreichung!B$3)-1","v":0},{"$f":"COUNTIF(Daten!$CB:$CB,Zielerreichung!C$3)-1","v":0},{"$f":"COUNTIF(Daten!$CB:$CB,Zielerreichung!D$3)-1","v":0},{"$f":"COUNTIF(Daten!$CB:$CB,Zielerreichung!E$3)-1","v":0},{"$f":"COUNTIF(Daten!$CB:$CB,Zielerreichung!F$3)-1","v":0},{"$f":"COUNTIF(Daten!$CB:$CB,\"k.A.\")-1","v":0}]
["Mein Engagement trägt wesentlich zum Er-reichen dieser Ziele bei.",{"$f":"COUNTIF(Daten!$CC:$CC,Zielerreichung!B$3)-1","v":0},{"$f":"COUNTIF(Daten!$CC:$CC,Zielerreichung!C$3)-1","v":0},{"$f":"COUNTIF(Daten!$CC:$CC,Zielerreichung!D$3)-1","v":0},{"$f":"COUNTIF(Daten!$CC:$CC,Zielerreichung!E$3)-1","v":0},{"$f":"COUNTIF(Daten!$CC:$CC,Zielerreichung!F$3)-1","v":0},{"$f":"COUNTIF(Daten!$CC:$CC,\"k.A.\")","v":1}]
[]
[]
[null,"trifft voll und ganz zu","trifft eher zu","teils/teils","trifft eher nicht zu","trifft überhaupt nicht zu","keine Angabe","n="]
["Relativ (% d. abgeg. Stimmen)",null,null,null,null,null,null,{"$f":"SUM(B5:G5)","v":0}]
["Meine Organisation (s. Frage 1) hat Erfolg bei der Erreichung der gesetzten Ziele.",{"$f":"B5/$H$10","v":{"$error":"#DIV/0!"}},{"$f":"C5/$H$10","v":{"$error":"#DIV/0!"}},{"$error":"#DIV/0!"},{"$error":"#DIV/0!"},{"$error":"#DIV/0!"},{"$error":"#DIV/0!"}]
["Mein Engagement trägt wesentlich zum Er-reichen dieser Ziele bei.",{"$f":"B6/$H$10","v":{"$error":"#DIV/0!"}},{"$f":"C6/$H$10","v":{"$error":"#DIV/0!"}},{"$f":"D6/$H$10","v":{"$error":"#DIV/0!"}},{"$f":"E6/$H$10","v":{"$error":"#DIV/0!"}},{"$f":"F6/$H$10","v":{"$error":"#DIV/0!"}},{"$f":"G6/$H$10","v":{"$error":"#DIV/0!"}}]